Cogmind - Beta 13 @@@ ROGUE MODE // 2024.04.29 @ 17:13:50 Player: dp-fld Result: Destroyed by as-60105 with Assembled Heavy Rifle Performance ------------- Evolutions (0) 0 Regions Visited (4) 800 Robots Destroyed (19) 95 Value Destroyed (339) 339 Prototype IDs (30) 600 Alien Tech Used (0) 0 Bonus (300) 300 TOTAL SCORE: 2134 Bonus ------- Aligned with FarCom 300 Cogmind --------- Core Integrity 0/250 Matter 251/300 Energy 98/100 System Corruption 0% Temperature Cool (0) Movement Core (50) Location -9/Mines Parts ------- > --- POWER (1) -------- (None) > --- PROPULSION (2) --- (None) > --- UTILITY (2) ------ (None) > --- WEAPON (2) ------- (None) > --- INVENTORY (5) ---- Light Treads High-capacity Storage Unit Trap Reconfigurator Datajack Makeshift Sword Peak State ------------ > --- POWER ------------ Ion Engine > --- PROPULSION ------- Light Treads Light Treads > --- UTILITY ---------- Improved Heat Sink High-capacity Storage Unit > --- WEAPON ----------- Particle Gun Particle Gun > --- INVENTORY -------- Light Ion Engine Nuclear Core Light Fission Core Light Fission Core Light Treads Heat Sink Large Storage Unit Structural Scanner Sensor Array Signal Interpreter Seismic Detector Tractor Beam Trap Reconfigurator Beam Cannon Rocket Launcher Datajack Hammer Makeshift Sword [Rating: 15] Favorites ----------- Power Ion Engine Engine Ion Engine Propulsion Light Treads Treads Light Treads Leg Aluminum Leg Utility Large Storage Unit Device Improved Heat Sink Storage Large Storage Unit Weapon Particle Gun Energy Gun Particle Gun Energy Cannon Beam Cannon Launcher Rocket Launcher Build | -11 -10 -10 -10 -9 ------- Run | Yrd Mat Min Exi Min Slots Evolved . | . . . . . Power . | . . . . . Propulsion . | . . . . . Utility . | . . . . . Weapon . | . . . . . Parts Attached 19 | 1 9 5 2 2 Power 1 | . . . 1 . Engine 1 | . . . 1 . Core . | . . . . . Reactor . | . . . . . Propulsion 5 | . 5 . . . Treads 3 | . 3 . . . Leg 2 | . 2 . . . Wheel . | . . . . . Hover . | . . . . . Flight . | . . . . . Utility 6 | 1 2 1 1 1 Device 3 | 1 1 1 . . Storage 3 | . 1 . 1 1 Processor . | . . . . . Hackware . | . . . . . Protection . | . . . . . Artifact . | . . . . . Weapon 7 | . 2 4 . 1 Energy Gun 4 | . 1 3 . . Energy Cannon 1 | . 1 . . . Ballistic Gun . | . . . . . Ballistic Cannon . | . . . . . Launcher 2 | . . 1 . 1 Special Weapon . | . . . . . Impact Weapon . | . . . . . Slashing Weapon . | . . . . . Piercing Weapon . | . . . . . Special Melee Weapon . | . . . . . Unidentified Prototypes . | . . . . . Parts Lost 4 | . . . . 4 Power 1 | . . . . 1 Propulsion 1 | . . . . 1 Utility 1 | . . . . 1 Weapon 1 | . . . . 1 Highest Loss Streak 4 | . . . . 4 To Critical Strikes . | . . . . . Average Slot Usage (%) 98 | . 100 100 100 58 Engine 13 | . 14 14 14 7 Treads 20 | . 12 28 28 17 Leg 7 | . 15 . . . Device 13 | . 14 14 14 8 Storage 13 | . 14 14 14 8 Energy Gun 20 | . 16 20 28 8 Energy Cannon 6 | . 11 4 . . Naked Turns 32 | . . . . 32 Heaviest Build 53 | 14 32 33 52 53 Greatest Support 40 | 20 40 40 40 40 Greatest Overweight (x) 1 | . . . 1 1 Average Overweight (x) . | . . . . . Largest Inventory Capacity 20 | 8 15 15 20 20 Average Capacity 14 | 8 11 15 19 14 Most Carried 18 | 7 13 15 18 18 Average Carried 12 | 6 9 14 17 11 Final Capacity 20 | 8 15 15 20 5 Final Carried 18 | 6 13 15 18 5 Class Distribution -------------------- 61% | Mutant 38% | Scavenger-Mutant Dominant Class ---------------- Mutant | -10/Materials Mutant | -10/Mines Scavenger-Mutant | -10/Exiles Mutant | -9/Mines Resources | -11 -10 -10 -10 -9 ----------- Run | Yrd Mat Min Exi Min Matter Collected 341 | 210 90 41 . . Remotely . | . . . . . Salvage Created 527 | 16 390 119 . 2 Parts 26 | 3 18 5 . . Haulers Intercepted 2 | . 2 . . . Recyclers Shooed 1 | . 1 . . . Parts Field Recycled . | . . . . . Retrieved Matter . | . . . . . Parts Self-Destructed . | . . . . . Prevented . | . . . . . Kills | -11 -10 -10 -10 -9 ------- Run | Yrd Mat Min Exi Min Combat Hostiles Destroyed 12 | . 7 4 . 1 Guns 6 | . 3 3 . . Cannons 4 | . 4 . . . AOE 2 | . . 1 . 1 Classes Destroyed 7 | 1 5 . . 1 Worker 3 | . 3 . . . Builder 1 | . 1 . . . Tunneler 2 | 1 . 1 . . Hauler 2 | . 2 . . . Swarmer 5 | . 3 2 . . Grunt 6 | . 4 2 . . Assembled 1 | . . . . 1 Best Kill Streak 3 | 1 3 2 . 1 Combat Bots Only 2 | . 2 2 . 1 Max Kills in Single Turn 1 | 1 1 1 . 1 Gunslinging . | . . . . . Exploded 1 | . . 1 . 1 Melee . | . . . . . Uniques/NPCs Destroyed . | . . . . . Combat | -11 -10 -10 -10 -9 -------- Run | Yrd Mat Min Exi Min Hostile Shots Fired 111 | . 49 17 . 45 Missed 26 | . 13 3 . 10 Damage Taken 1035 | . 344 203 . 488 Core 256 | . 73 13 . 170 Absorbed by Shields . | . . . . . Core Remaining (%) 100 | 100 . . . . Volleys Fired 60 | 2 45 12 . 1 Largest 2 | 2 2 2 . 2 Hottest 130 | 90 125 130 . 98 Shots Fired 108 | 4 83 19 . 2 Gun 64 | 4 42 17 . 1 Cannon 42 | . 41 1 . . Launcher 2 | . . 1 . 1 Special . | . . . . . Kinetic . | . . . . . Thermal 106 | 4 83 18 . 1 Explosive 2 | . . 1 . 1 Electromagnetic . | . . . . . Robot Hit Streak 11 | 1 11 5 . 2 Robot Miss Streak 6 | 1 6 3 . 1 Penetration Max . | . . . . . Secondary Targets . | . . . . . Shots Hit Robots 59 | 2 46 10 . 1 Core Hits 30 | 1 17 9 . 3 Critical Kills . | . . . . . Critical Parts Destroyed . | . . . . . Critical Strikes 5 | . 3 2 . . Burn 5 | . 3 2 . . Melee Attacks . | . . . . . Impact . | . . . . . Slashing . | . . . . . Piercing . | . . . . . Sneak Attacks . | . . . . . Combat Hostiles . | . . . . . Follow-up Attacks . | . . . . . Damage Inflicted 1084 | 20 736 236 . 92 Guns 505 | 20 332 136 . 17 Cannons 421 | . 404 17 . . Explosions 155 | . . 80 . 75 Melee . | . . . . . Ramming 3 | . . 3 . . Kinetic . | . . . . . Thermal 926 | 20 736 153 . 17 Explosive 155 | . . 80 . 75 Electromagnetic . | . . . . . Impact . | . . . . . Slashing . | . . . . . Piercing . | . . . . . Highest Corruption . | . . . . . Average Corruption . | . . . . . Corruption Purged . | . . . . . Corruption Blocked . | . . . . . Overload Shots . | . . . . . Overflow Damage 11 | . 11 . . . Projectiles 11 | . 11 . . . Explosions . | . . . . . Melee . | . . . . . Knockbacks . | . . . . . Impact . | . . . . . Kinetic . | . . . . . Secondary . | . . . . . Self-Inflicted Damage 40 | . . 40 . . Shots 1 | . . 1 . . Rammed 1 | . . 1 . . Targets Rammed 1 | . . 1 . . Kicked . | . . . . . Crushed . | . . . . . Highest Temperature 204 | 60 204 135 . 15 Average Temperature 53 | 30 55 54 . 11 Received Heat Transfer 325 | . 96 69 . 160 Siege Activations . | . . . . . Robots Corrupted . | . . . . . Combat Hostiles . | . . . . . Parts Fried . | . . . . . Impact Corruptions . | . . . . . Robots Melted . | . . . . . Combat Hostiles . | . . . . . Parts Melted 7 | . 4 3 . . Heat Transferred 2493 | 50 1925 481 . 37 Parts Sabotaged . | . . . . . Parts Stolen . | . . . . . Parts Stripped . | . . . . . Power Chain Reactions . | . . . . . Alert | -11 -10 -10 -10 -9 ------- Run | Yrd Mat Min Exi Min Peak Influence 212 | 5 212 108 . 20 Initial 42 | . 3 42 . . Average 63 | 2 82 33 . 1 Maximum Alert Level 1 | . 1 . . . Low Security (%) 99 | 100 98 100 . 100 Level 1 . | . 1 . . . Level 2 . | . . . . . Level 3 . | . . . . . Level 4 . | . . . . . Level 5 . | . . . . . High Security . | . . . . . Max Security . | . . . . . Squads Dispatched 3 | . 3 . . . Investigation 3 | . 3 . . . Extermination . | . . . . . Reinforcement . | . . . . . Assault . | . . . . . Garrison . | . . . . . Intercept . | . . . . . Searches Triggered . | . . . . . Construction Impeded . | . . . . . Haulers Reinforced . | . . . . . Active Scanning Responses . | . . . . . Cargo Convoy Interrupts . | . . . . . Stealth | -11 -10 -10 -10 -9 --------- Run | Yrd Mat Min Exi Min Distress Signals 3 | . 3 . . . Communications Jammed . | . . . . . Distress Signals . | . . . . . Times Spotted 42 | . 24 5 . 13 Peak Tracking Total 9 | . 4 3 . 9 Tactical Retreats 5 | . 3 1 . 1 Traps | -11 -10 -10 -10 -9 ------- Run | Yrd Mat Min Exi Min Traps Triggered . | . . . . . Indirectly . | . . . . . Trap Hack Attempts . | . . . . . Triggered . | . . . . . Disarmed . | . . . . . Reprogrammed . | . . . . . Reused . | . . . . . Traps Extracted . | . . . . . Installed . | . . . . . Triggered . | . . . . . Machines | -11 -10 -10 -10 -9 ---------- Run | Yrd Mat Min Exi Min Machines Disabled 2 | . 1 . . 1 Max in Single Turn 1 | . 1 . . 1 Machines Repaired . | . . . . . Machines Dismantled . | . . . . . Machines Sabotaged . | . . . . . Overloaded Fab Kills . | . . . . . Hacking | -11 -10 -10 -10 -9 --------- Run | Yrd Mat Min Exi Min Machines Accessed 15 | . 9 1 5 . Terminals 8 | . 7 1 . . Fabricators . | . . . . . Repair Stations . | . . . . . Recycling Units 2 | . 2 . . . Scanalyzers . | . . . . . Garrison Access . | . . . . . Total Hacks 79 | . 27 2 50 . Successful 61 | . 9 2 50 . Failed 17 | . 17 . . . Catastrophic 1 | . 1 . . . Database Lockouts 1 | . 1 . . . Manual 25 | . 24 . 1 . Terminals 27 | . 25 2 . . Fabricators . | . . . . . Repair Stations . | . . . . . Recycling Units 2 | . 2 . . . Scanalyzers . | . . . . . Garrison Access . | . . . . . Terminal Hacks 57 | . 5 2 50 . Record 49 | . . . 49 . Prototype ID Bank 5 | . 5 . . . Dispatch Records 1 | . . 1 . . Zone Layout 1 | . . 1 . . Derelict Proto ID Bank 1 | . . . 1 . Fabricator Hacks . | . . . . . Repair Station Hacks . | . . . . . Recycling Unit Hacks . | . . . . . Scanalyzer . | . . . . . Garrison Access Hacks . | . . . . . Unauthorized Hacks 4 | . 4 . . . Terminals 2 | . 2 . . . Assimilate 1 | . 1 . . . Botnet 1 | . 1 . . . Fabricators . | . . . . . Repair Stations . | . . . . . Recycling Units 2 | . 2 . . . Tunnel 2 | . 2 . . . Scanalyzers . | . . . . . Garrison Access . | . . . . . Data Cores Recovered . | . . . . . Used . | . . . . . Hacking Detections 7 | . 6 1 . . Full Trace Events 1 | . 1 . . . Feedback Events . | . . . . . Feedback Blocked . | . . . . . Robot Schematics Acquired . | . . . . . Robots Built . | . . . . . Authchips . | . . . . . Time . | . . . . . Total Robot Build Rating . | . . . . . Part Schematics Acquired . | . . . . . Parts Built . | . . . . . Authchips . | . . . . . Time . | . . . . . Total Part Build Rating . | . . . . . Parts Repaired . | . . . . . Time . | . . . . . Parts Recycled . | . . . . . Recycled Matter . | . . . . . Retrieved Matter . | . . . . . Retrieved Components . | . . . . . Parts Scanalyzed . | . . . . . Part Schematics Acquired . | . . . . . Parts Damaged . | . . . . . Bothacking | -11 -10 -10 -10 -9 ------------ Run | Yrd Mat Min Exi Min Used RIF Installer . | . . . . . Robots Hacked . | . . . . . Non-combat . | . . . . . Combat . | . . . . . Robot Hacks Applied . | . . . . . Relay Couplers Released . | . . . . . Fabnet Peak Effective % . | . . . . . Robots Rewired . | . . . . . Allies Hacked . | . . . . . Hacks Repelled . | . . . . . Allies | -11 -10 -10 -10 -9 -------- Run | Yrd Mat Min Exi Min Total Allies 1 | . 1 . . . Largest Group 1 | . 1 . . . Highest-Rated Group 10 | . 10 . . . Highest-Rated Ally 10 | . 10 . . . Total Orders . | . . . . . Ally Attacks . | . . . . . Total Damage . | . . . . . Kills . | . . . . . Allies Corrupted . | . . . . . Allies Melted . | . . . . . Intel | -11 -10 -10 -10 -9 ------- Run | Yrd Mat Min Exi Min Robot Analysis Total . | . . . . . Derelict Logs Recovered 1 | . . 1 . . Drone Launches . | . . . . . Drone Recoveries . | . . . . . Exploration | -11 -10 -10 -10 -9 ------------- Run | Yrd Mat Min Exi Min Turns Passed 3328 | 56 1596 696 897 83 Spaces Moved 1887 | 41 981 406 378 81 Core 64 | . . . . 64 Treads 1237 | . 436 406 378 17 Legs 586 | 41 545 . . . Wheels . | . . . . . Hover . | . . . . . Flight . | . . . . . Fastest Speed 50 | 120 120 160 160 50 Average Speed 159 | 120 137 160 235 88 Slowest Speed 240 | 120 160 160 240 240 Overloaded Moves . | . . . . . Propulsion Burnouts . | . . . . . Robots Hopped . | . . . . . Cave-ins Triggered . | . . . . . Exploration Rate (%) 56 | 4 98 72 78 29 Regions Visited 4 Branch Regions 3 Pre-discovered Areas 4 | . 2 1 1 . Known Exits Taken . | . . . . . Unknown Exits Taken 4 | 1 1 1 1 . Scrap Searched 1 | . . 1 . . Spaces Dug . | . . . . . Terrain Destroyed 16 | . . 11 . 5 Melee . | . . . . . Projectile . | . . . . . AOE 16 | . . 11 . 5 Terrain Rammed . | . . . . . Walls Destroyed . | . . . . . Machines Disabled . | . . . . . Actions | -11 -10 -10 -10 -9 --------- Run | Yrd Mat Min Exi Min Total 2102 | 44 1147 432 386 93 Wait 93 | . 89 4 . . Move 1883 | 40 980 405 377 81 Hop . | . . . . . Pick Up 22 | 1 13 2 5 1 Fast Attach 2 | . 1 1 . . Attach 1 | 1 . . . . Detach . | . . . . . Swap 16 | . 8 4 2 2 Drop 24 | . 11 3 2 8 Fire 60 | 2 45 12 . 1 Melee . | . . . . . Ram . | . . . . . Kick . | . . . . . Crush 1 | . . 1 . . Escape Stasis . | . . . . . Rewire . | . . . . . Trap . | . . . . . Miscellaneous . | . . . . . Route ------- -11/Scrapyard -10/Materials (discovered 5 exits: [*Mat x3] / *Min x2) -10/Mines (discovered 3 exits: [*Mat x2] / *Exi) -10/Exiles -9/Mines History --------- Turn | Location | Event 1 | -11/Scrapyard | Discovered new exit (range 3) 57 | -11/Scrapyard | Entered Materials 142 | -10/Materials | Discovered new exit (range 8) 177 | -10/Materials | Discovered new exit (range 6) 282 | -10/Materials | Discovered new exit (range 14) 310 | -10/Materials | Build established: Mutant 611 | -10/Materials | Discovered new exit (range 6) 937 | -10/Materials | Discovered new exit (range 14) 1454 | -10/Materials | Central database locked down 1653 | -10/Materials | Entered Mines 1728 | -10/Mines | Discovered new exit (range 4) 1869 | -10/Mines | Discovered new exit (range 9) 1881 | -10/Mines | Received a Rocket Launcher from a helpful Derelict 2026 | -10/Mines | A weapon hastily lodged in a ceiling crevice suddenly fell to the ground 2047 | -10/Mines | Learned location of Mines (-9) 2297 | -10/Mines | Deemed a non-threat by the Exiles lab entrance 2297 | -10/Mines | Discovered new exit (range 5) 2317 | -10/Mines | Build established: Scavenger-Mutant 2349 | -10/Mines | Entered Exiles 2405 | -10/Exiles | Met 8R-AWN 2444 | -10/Exiles | Met EX-HEX 2569 | -10/Exiles | Met EX-DEC 2610 | -10/Exiles | Visited The Gauntlet 2739 | -10/Exiles | Learned location of Zion (-7) 2811 | -10/Exiles | Met EX-BIN 2864 | -10/Exiles | Aligned with FarCom system 2866 | -10/Exiles | Given EX-Vault access code 2924 | -10/Exiles | Opened EX-Vault 2950 | -10/Exiles | Found Trap Reconfigurator 3040 | -10/Exiles | Warned to stay clear of 0b10 Research branches 3222 | -10/Exiles | Discovered new exit (range 12) 3246 | -10/Exiles | Left Exiles lab with Trap Reconfigurator 3246 | -10/Exiles | Entered Mines 3247 | -9/Mines | Assembled infested the area 3252 | -9/Mines | Assisted by a Guerilla fighting off Assembled 3290 | -9/Mines | Core integrity fell below 50% 3297 | -9/Mines | Released all parts (3) 3298 | -9/Mines | Core integrity fell below 20% 3327 | -9/Mines | Lost 4 parts (1p1n1u1w) 3329 | -9/Mines | Destroyed by as-60105 with Assembled Heavy Rifle Last Messages --------------- 03279_ VT-UXO(h) system corrupted by crushing effect. 03280_ VT-UXO(h) system terminally corrupted. 03281_ Dropped Rigged Lgt. Fission Core. 03282_ Core Extractor disabled. 03282_ as-95622 destroyed. 03284_ Rigged Nuclear Core explodes. 03284_ as-93754 destroyed. 03284_ Rocket Launcher destroyed. 03289_ Ion Engine destroyed. 03289_ Dropped Rigged Lgt. Fission Core. 03290_ Dropped Heat Sink. 03291_ Dropped Lrg. Storage Unit. 03293_ Acquired Lrg. Storage Unit. 03294_ Imp. Heat Sink destroyed. 03296_ Lgt. Treads destroyed. 03297_ Released Lrg. Storage Unit. 03297_ Released Lgt. Treads. 03297_ Released Particle Gun. 03301_ Rigged Lgt. Fission Core explodes. 03301_ as-85040 destroyed. Map ----- +----------------------------------------------------+ | | | | | | | | | | | | | ?????????????????????????????????????????????????? | | ###??????????????????????????????????????????????? | | #??????????????????????????????????????????????? | | ! #?????????????????????????????????????????#????? | | ]#????????????????????????????????????????# #??? | | ! #???????????????????????????????????????# ??? | | [#????????????????????????????????????### #?? | | #???????????????????????????????????# #?? | | #??????????? ????????????????????## #??? | | #??????????? ?????????????????## #???? | | #?????????? ???????????????## ?????? | | #?????????? ??????????????# #??????? | | #????????? #?????????????# #???????? | | #????????? ##???????????# ##??????? | | ##????????? t #?????????## ##?????? | | ##?????????? #???????## ##????? | | ##??????????? #????### #????? | | #?????????????# ##?## ######????? | | #########???????# #?# ####?????????? | | ####?????# @### ##????????????? | | #????## ##?????????????? | | ######## #????# a ##??????????????? | | ###??????##### #???# ##a#####???????????????? | | #????????????## #???# ## #???????????????????? | | ????????????## ##??## ## #???????????????????? | | ?????######## ##??## ###!#???????????????????? | | ??# ##??###??#*#???????????????????? | | ??# ##??????#%#???????????????????? | | ??# ######## #??#####!#???????????????????? | | ????????????## ##?# #???????????????????? | | ?????????????#### ### #####???????????????????? | | ????????????????## #???????????????????????? | | ?????????????????# ####???????????????????????? | | ?????????????????## #??????????????????????????? | | ??????????????????## #??????????????????????????? | | ???????????????????# ??????????????????????????? | | ???????????????????## #?????????????????????????? | | ????????????????????####?????????????????????????? | | ?????????????????????????????????????????????????? | | ?????????????????????????????????????????????????? | | ?????????????????????????????????????????????????? | | ?????????????????????????????????????????????????? | | ?????????????????????????????????????????????????? | | ?????????????????????????????????????????????????? | +----------------------------------------------------+ Best States ------------- Heat Dissipation 39 Energy Generation 10 Energy Capacity 250 Matter Stores 300 Matter Capacity 300 Sight Range 16 Terrain Scan Density 10 Evasion (%) 55 Recoil Reduction 2 Item Schematics ----------------- None Robot Schematics ------------------ None Fabricated ------------ Nothing Alien Tech Used ----------------- None Achievements -------------- None Challenges ------------ None Game ------ Seed DerelictSensorCalibrator Manual? 0 Play Time 00:29:28 Cumulative 347.0 hours Start 2024.04.29 @ 16:43:54 End 2024.04.29 @ 17:13:50 Sessions 1 Manual Loads 0 Difficulty Rogue Special Mode None Game No. 115 Rogue 76 Adventurer 0 Explorer 39 Win Type - Total 11 Types 9/1/1/0/0/0/0/0/0 Lore% 70 Gallery% 76 Achievement% 67 Wizard Run 0 Options --------- Layout 0 ASCII 1 Keyboard 1 Movement Arrows Keybinds 0 Fullscreen 2 Font 36/Smallcaps Map View 76x50 Zoom Use 0% Tactical HUD 1 Map Filters NONE Filters NONE Steam 1 RUN: 53946ef6-7f9c-4b24-afcb-0b18157ec873